fUSD/lending_fUSD_20240630
["ID","MTS","AMOUNT","RATE_DAILY","PERIOD"]
[330751840,1719755494624,-544.15,0.00014356,3]
[330751841,1719755494634,-500.0,0.00014356,3]
[330751842,1719755494644,-4117.59,0.00014356,3]
[330751843,1719755494654,-500.0,0.00014356,3]
[330751844,1719755494664,-613.82,0.00014356,3]
[330751845,1719755494674,-500.0,0.00014356,3]
[330751846,1719755494684,-500.0,0.00014356,3]
[330751847,1719755494693,-766.18,0.00014356,3]
[330751848,1719755494703,-500.0,0.00014356,3]
[330751849,1719755494712,-842.1,0.00014356,3]
[330751850,1719755494722,-500.0,0.00014356,3]
[330751851,1719755494731,-500.0,0.00014356,3]
[330751852,1719755494740,-500.0,0.00014356,3]
[330751853,1719755494750,-500.0,0.00014356,3]
[330751854,1719755494761,-645.72,0.00014356,3]
[330751855,1719755494770,-500.0,0.00014356,3]
[330751856,1719755494781,-500.0,0.00014356,3]
[330751857,1719755494792,-933.76,0.00014356,3]
[330751858,1719755494802,-500.0,0.00014356,3]
[330751859,1719755494814,-455.0,0.00014356,3]
[330751860,1719755494824,-500.0,0.00014356,3]
[330751861,1719755494834,-1403.52,0.00014356,3]
[330751862,1719755494843,-500.0,0.00014356,3]
[330751863,1719755494853,-500.0,0.00014356,3]
[330751864,1719755494862,-500.0,0.00014356,3]
[330751865,1719755494872,-534.11,0.00014356,3]
[330751866,1719755494882,-500.0,0.00014356,3]
[330751867,1719755494891,-500.0,0.00014356,3]
[330751868,1719755494901,-500.0,0.00014356,3]
[330751869,1719755494911,-500.0,0.00014356,3]
[330751870,1719755494921,-500.0,0.00014356,3]
[330751871,1719755494931,-500.0,0.00014356,3]
[330751872,1719755494941,-648.58,0.00014356,3]
[330751873,1719755494950,-500.0,0.00014356,3]
[330751874,1719755494960,-518.15,0.00014356,3]
[330751875,1719755494969,-668.63,0.00014356,3]
[330751876,1719755494979,-500.0,0.00014356,3]
[330751877,1719755494988,-1137.4,0.00014356,3]
[330751878,1719755494999,-500.0,0.00014356,3]
[330751879,1719755495009,-750.23,0.00014356,3]
[330751880,1719755495018,-225.0,0.00014356,3]
[330751881,1719755495027,-500.0,0.00014356,3]
[330751882,1719755495037,-565.47,0.00014356,3]
[330751883,1719755495046,-964.26,0.00014356,3]
[330751884,1719755495055,-500.0,0.00014356,3]
[330751885,1719755495064,-500.0,0.00014356,3]
[330751886,1719755495074,-502.48,0.00014356,3]
[330751887,1719755495084,-500.0,0.00014356,3]
[330751888,1719755495093,-905.38,0.00014356,3]
[330751889,1719755495102,-762.19,0.00014356,3]
[330751890,1719755495111,-500.0,0.00014356,3]
[330751891,1719755495121,-1355.12,0.00014356,3]
[330751892,1719755495130,-500.0,0.00014356,3]
[330751893,1719755495139,-500.0,0.00014356,3]
[330751894,1719755495148,-500.0,0.00014356,3]
[330751895,1719755495157,-662.1,0.00014356,3]
[330751896,1719755495167,-500.0,0.00014356,3]
[330751897,1719755495176,-765.23,0.00014356,3]
[330751898,1719755495186,-690.29,0.00014356,3]
[330751899,1719755495195,-877.24,0.00014356,3]
[330751900,1719755495204,-500.0,0.00014356,3]
[330751901,1719755495214,-713.88,0.00014356,3]
[330751902,1719755495223,-500.0,0.00014356,3]
[330751903,1719755495232,-500.0,0.00014356,3]
[330751904,1719755495242,-1457.02,0.00014356,3]
[330751905,1719755495251,-500.0,0.00014356,3]
[330751906,1719755495261,-639.03,0.00014356,3]
[330751907,1719755495270,-1059.53,0.00014356,3]
[330751908,1719755495279,-500.0,0.00014356,3]
[330751909,1719755495289,-1241.5,0.00014356,3]
[330751910,1719755495299,-500.0,0.00014356,3]
[330751911,1719755495308,-737.63,0.00014356,3]
[330751912,1719755495317,-1349.88,0.00014356,3]
[330751913,1719755495327,-284.11,0.00014356,3]
[330751914,1719755495337,-500.0,0.00014356,3]
[330751915,1719755495347,-561.34,0.00014356,3]
[330751916,1719755495356,-604.72,0.00014356,3]
[330751917,1719755495366,-500.0,0.00014356,3]
[330751918,1719755495376,-500.0,0.00014356,3]
[330751919,1719755495386,-500.0,0.00014356,3]
[330751920,1719755495395,-957.39,0.00014356,3]
[330751921,1719755495405,-764.6,0.00014356,3]
[330751922,1719755495415,-660.46,0.00014356,3]
[330751923,1719755495424,-500.0,0.00014356,3]
[330751924,1719755495434,-604.79,0.00014356,3]
[330751925,1719755495443,-905.53,0.00014356,3]
[330751926,1719755495524,-500.0,0.00014356,3]
[330751927,1719755495534,-526.22,0.00014356,3]
[330751928,1719755495544,-500.0,0.00014356,3]
[330751929,1719755495553,-500.0,0.00014356,3]
[330751930,1719755495562,-500.0,0.00014356,3]
[330751931,1719755495572,-500.0,0.00014356,3]
[330751932,1719755495582,-622.84,0.00014356,3]
[330751933,1719755495594,-500.0,0.00014356,3]
[330751934,1719755495604,-1277.66,0.00014356,3]
[330751935,1719755495613,-500.0,0.00014356,3]
[330751936,1719755495623,-500.0,0.00014356,3]
[330751937,1719755495633,-1641.91,0.00014356,3]
[330751938,1719755495642,-707.52,0.00014356,3]
[330751939,1719755495652,-500.0,0.00014356,3]
[330751940,1719755495662,-616.94,0.00014356,3]
[330751941,1719755495672,-1304.99,0.00014356,3]
[330751942,1719755495682,-620.52,0.00014356,3]
[330751943,1719755495692,-500.0,0.00014356,3]
[330751944,1719755495701,-500.0,0.00014356,3]
[330751945,1719755495710,-500.0,0.00014356,3]
[330751946,1719755495719,-500.0,0.00014356,3]
[330751947,1719755495729,-721.33,0.00014356,3]
[330751948,1719755495739,-500.0,0.00014356,3]
[330751949,1719755495748,-504.24,0.00014356,3]
[330751950,1719755495759,-700.83,0.00014356,3]
[330751951,1719755495769,-832.16,0.00014356,3]
[330751952,1719755495779,-500.0,0.00014356,3]
[330751953,1719755495788,-614.4,0.00014356,3]
[330751954,1719755495797,-500.0,0.00014356,3]
[330751955,1719755495807,-500.0,0.00014356,3]
[330751956,1719755495817,-1044.88,0.00014356,3]
[330751957,1719755495826,-500.0,0.00014356,3]
[330751958,1719755495836,-500.0,0.00014356,3]
[330751959,1719755495845,-507.13,0.00014356,3]
[330751960,1719755495855,-500.0,0.00014356,3]
[330751961,1719755495865,-500.0,0.00014356,3]
[330751962,1719755495874,-500.0,0.00014356,3]
[330751963,1719755495884,-500.0,0.00014356,3]
[330751964,1719755495894,-517.3,0.00014356,3]
[330751965,1719755495903,-500.0,0.00014356,3]
[330751966,1719755495913,-881.23,0.00014356,3]
[330751967,1719755495923,-891.0,0.00014356,3]
[330751968,1719755495935,-656.4,0.00014356,3]
[330751969,1719755495944,-689.57,0.00014356,3]
[330751970,1719755495953,-957.05,0.00014356,3]
[330751971,1719755495962,-1173.05,0.00014356,3]
[330751972,1719755495971,-500.0,0.00014356,3]
[330751973,1719755495981,-500.0,0.00014356,3]
[330751974,1719755495991,-507.92,0.00014356,3]
[330751975,1719755496002,-500.0,0.00014356,3]
[330751976,1719755496011,-544.05,0.00014356,3]
[330751977,1719755496021,-500.0,0.00014356,3]
[330751978,1719755496030,-500.0,0.00014356,3]
[330751979,1719755496039,-703.63,0.00014356,3]
[330751980,1719755496049,-592.64,0.00014356,3]
[330751981,1719755496059,-500.0,0.00014356,3]
[330751982,1719755496068,-500.0,0.00014356,3]
[330751983,1719755496078,-759.3,0.00014356,3]
[330751984,1719755496087,-500.0,0.00014356,3]
[330751985,1719755496096,-500.0,0.00014356,3]
[330751986,1719755496106,-500.0,0.00014356,3]
[330751987,1719755496115,-500.0,0.00014356,3]
[330751988,1719755496124,-910.64,0.00014356,3]
[330751989,1719755496134,-641.73,0.00014356,3]
[330751990,1719755496143,-168.82690346,0.00014356,3]
[330751991,1719755496152,-544.61,0.00014356,3]
[330751992,1719755496162,-590.62,0.00014356,3]
[330751993,1719755496171,-329.43,0.00014356,3]
[330751994,1719755496181,-500.0,0.00014356,3]
[330751995,1719755496191,-689.38,0.00014356,3]
[330751996,1719755496199,-500.0,0.00014356,3]
[330751997,1719755496208,-661.02,0.00014356,3]
[330751998,1719755496221,-2904.97,0.00014356,3]
[330751999,1719755496230,-500.0,0.00014356,3]
[330752000,1719755496239,-500.0,0.00014356,3]
[330752001,1719755496249,-507.72,0.00014356,3]
[330752002,1719755496258,-1290.65,0.00014356,3]
[330752003,1719755496267,-500.0,0.00014356,3]
[330752004,1719755496277,-554.44,0.00014356,3]
[330752005,1719755496286,-578.69,0.00014356,3]
[330752006,1719755496296,-483.21,0.00014356,3]
[330752007,1719755496305,-655.08,0.00014356,3]
[330752008,1719755496314,-500.0,0.00014356,3]
[330752009,1719755496323,-1361.14,0.00014356,3]
[330752010,1719755496333,-812.49,0.00014356,3]
[330752011,1719755496343,-430.13801196,0.00014356,3]
[330752012,1719755496352,-500.0,0.00014356,3]
[330752013,1719755496362,-634.96,0.00014356,3]
[330752014,1719755496371,-500.0,0.00014356,3]
[330752015,1719755496381,-500.0,0.00014356,3]
[330752016,1719755496390,-500.0,0.00014356,3]
[330752017,1719755496399,-500.0,0.00014356,3]
[330752018,1719755496408,-896.65,0.00014356,3]
[330752019,1719755496418,-787.92,0.00014356,3]
[330752020,1719755496427,-540.68,0.00014356,3]
[330752021,1719755496438,-500.0,0.00014356,3]
[330752022,1719755496448,-500.0,0.00014356,3]
[330752023,1719755496457,-1488.55,0.00014356,3]
[330752024,1719755496466,-500.0,0.00014356,3]
[330752025,1719755496475,-584.33,0.00014356,3]
[330752026,1719755496486,-1089.27,0.00014356,3]
[330752027,1719755496495,-500.0,0.00014356,3]
[330752028,1719755496504,-500.0,0.00014356,3]
[330752029,1719755496514,-500.0,0.00014356,3]
[330752030,1719755496523,-500.0,0.00014356,3]
[330752031,1719755496532,-500.0,0.00014356,3]
[330752032,1719755496541,-2577.34,0.00014356,3]
[330752033,1719755496551,-664.84,0.00014356,3]
[330752034,1719755496560,-516.98,0.00014356,3]
[330752035,1719755496569,-200.0,0.00014368,2]
[330752036,1719755496579,-910.3,0.00014384,2]
[330752037,1719755496592,-1135.43,0.00014392,3]
[330752038,1719755496601,-1617.34,0.00014392,3]
[330752039,1719755496611,-1220.92,0.00014392,3]
[330752040,1719755496622,-529.92,0.00014392,3]
[330752041,1719755496635,-1337.79,0.00014392,3]
[330752042,1719755496645,-1162.53,0.00014392,3]
[330752043,1719755496654,-3818.29,0.00014394,3]
[330752044,1719755496663,-2148.15,0.00014423,3]
[330752045,1719755496675,-1274.99,0.00014423,3]
[330752046,1719755496687,-1079.15,0.00014431,3]
[330752047,1719755496699,-1590.65,0.00014431,3]
[330752048,1719755496711,-1459.73,0.00014431,3]
[330752049,1719755496721,-911.31,0.00014431,3]
[330752050,1719755496732,-592.8,0.00014431,3]
[330752051,1719755496740,-830.15,0.00014431,3]
[330752052,1719755496751,-1114.89,0.00014431,3]
[330752053,1719755496761,-500.0,0.00014431,3]
[330752054,1719755496772,-967.5,0.00014431,3]
[330752055,1719755496783,-640.83,0.00014431,3]
[330752056,1719755496792,-500.0,0.00014431,3]
[330752057,1719755496802,-500.0,0.00014431,3]
[330752058,1719755496810,-631.84036922,0.00014465,3]
[330752059,1719755496819,-500.0,0.00014465,3]
[330752060,1719755496828,-500.0,0.00014465,3]
[330752061,1719755496837,-642.55,0.00014465,3]
[330752062,1719755496847,-153.6802,0.00014465,2]
[330752063,1719755496856,-1492.12,0.00014465,3]
[330752064,1719755496864,-500.0,0.00014465,3]
[330752065,1719755496874,-526.54,0.00014465,3]
[330752066,1719755496883,-518.76,0.00014465,3]
[330752067,1719755496892,-500.0,0.00014465,3]
[330752068,1719755496901,-554.07,0.00014465,3]
[330752069,1719755496910,-500.0,0.00014465,3]
[330752070,1719755496920,-500.0,0.00014465,3]
[330752071,1719755496929,-500.0,0.00014465,3]
[330752072,1719755496940,-500.0,0.00014465,3]
[330752073,1719755496949,-500.0,0.00014465,3]
[330752074,1719755496958,-500.0,0.00014465,3]
[330752075,1719755496967,-500.0,0.00014465,3]
[330752076,1719755496977,-500.0,0.00014465,3]
[330752077,1719755496986,-500.0,0.00014465,3]
[330752078,1719755496995,-500.0,0.00014465,3]
[330752079,1719755497006,-500.0,0.00014465,3]
[330752080,1719755497016,-500.0,0.00014465,3]
[330752081,1719755497025,-1182.32,0.00014465,3]
[330752082,1719755497035,-500.0,0.00014465,3]
[330752083,1719755497044,-500.0,0.00014465,3]
[330752084,1719755497053,-500.0,0.00014465,3]
[330752085,1719755497063,-500.0,0.00014465,3]
[330752086,1719755497072,-428.31617064,0.00014465,3]
[330752087,1719755497081,-500.0,0.00014465,3]
[330752088,1719755497090,-500.0,0.00014465,3]
[330752089,1719755497099,-500.0,0.00014465,3]
[330752090,1719755497109,-607.62,0.00014465,3]
[330752091,1719755497118,-151.0,0.00014465,2]
[330752092,1719755497128,-500.0,0.00014465,3]
[330752093,1719755497137,-500.0,0.00014465,3]
[330752094,1719755497146,-500.0,0.00014465,3]
[330752095,1719755497156,-505.0,0.00014465,3]
[330752096,1719755497165,-500.0,0.00014465,3]
[330752097,1719755497174,-215.53373107,0.00014465,3]
[330752098,1719755497185,-500.0,0.00014465,3]
[330752099,1719755497194,-500.0,0.00014465,3]
[330752100,1719755497203,-500.0,0.00014465,3]
[330752101,1719755497212,-500.0,0.00014465,3]
[330752102,1719755497222,-500.0,0.00014465,3]
[330752103,1719755497231,-500.0,0.00014465,3]
[330752104,1719755497240,-561.37,0.00014465,3]
[330752105,1719755497250,-500.0,0.00014465,3]
[330752106,1719755497259,-500.0,0.00014465,3]
[330752107,1719755497268,-500.0,0.00014465,3]
[330752108,1719755497277,-500.0,0.00014465,3]
[330752109,1719755497287,-500.0,0.00014465,3]
[330752110,1719755497296,-500.0,0.00014465,3]
[330752111,1719755497306,-500.0,0.00014465,3]
[330752112,1719755497316,-500.0,0.00014465,3]
[330752113,1719755497326,-500.0,0.00014465,3]
[330752114,1719755497335,-500.0,0.00014465,3]
[330752115,1719755497345,-900.1,0.00014465,3]
[330752116,1719755497354,-500.0,0.00014465,3]
[330752117,1719755497363,-500.0,0.00014465,3]
[330752118,1719755497372,-500.0,0.00014465,3]
[330752119,1719755497382,-694.23,0.00014465,3]
[330752120,1719755497393,-500.0,0.00014465,3]
[330752121,1719755497402,-500.0,0.00014465,3]
[330752122,1719755497412,-500.0,0.00014465,3]
[330752123,1719755497422,-554.48,0.00014465,3]
[330752124,1719755497432,-500.0,0.00014465,3]
[330752125,1719755497442,-500.0,0.00014465,3]
[330752126,1719755497451,-500.0,0.00014465,3]
[330752127,1719755497461,-500.0,0.00014465,3]
[330752128,1719755497470,-500.0,0.00014465,3]
[330752129,1719755497480,-468.85342357,0.00014465,3]
[330752130,1719755497490,-500.0,0.00014465,3]
[330752131,1719755497499,-500.0,0.00014465,3]
[330752132,1719755497509,-222.0,0.00014465,3]
[330752133,1719755497519,-500.0,0.00014465,3]
[330752134,1719755497528,-500.0,0.00014465,3]
[330752135,1719755497538,-500.0,0.00014465,3]
[330752136,1719755497547,-500.0,0.00014465,3]
[330752137,1719755497557,-365.88,0.00014465,3]
[330752138,1719755497567,-593.15,0.00014465,3]
[330752139,1719755497576,-341.90184124,0.00014465,3]
[330752140,1719755497587,-500.0,0.00014465,3]
[330752141,1719755497598,-500.0,0.00014465,3]
[330752142,1719755497608,-500.0,0.00014465,3]
[330752143,1719755497617,-500.0,0.00014465,3]
[330752144,1719755497627,-500.0,0.00014465,3]
[330752145,1719755497636,-500.0,0.00014465,3]
[330752146,1719755497646,-690.44,0.00014465,3]
[330752147,1719755497656,-500.0,0.00014465,3]
[330752148,1719755497667,-502.26,0.00014465,3]
[330752149,1719755497680,-500.0,0.00014465,3]
[330752150,1719755497690,-500.0,0.00014465,3]
[330752151,1719755497700,-500.0,0.00014465,3]
[330752152,1719755497709,-500.0,0.00014465,3]
[330752153,1719755497719,-500.0,0.00014465,3]
[330752154,1719755497729,-500.0,0.00014465,3]
[330752155,1719755497738,-500.0,0.00014465,3]
[330752156,1719755497748,-757.41,0.00014465,3]
[330752157,1719755497758,-500.0,0.00014465,3]
[330752158,1719755497768,-715.47,0.00014465,3]
[330752159,1719755497778,-621.83,0.00014465,3]
[330752160,1719755497788,-500.0,0.00014465,3]
[330752161,1719755497797,-500.0,0.00014465,3]
[330752162,1719755497807,-571.76,0.00014465,3]
[330752163,1719755497816,-705.69,0.00014465,3]
[330752164,1719755497826,-500.0,0.00014465,3]
[330752165,1719755497835,-500.0,0.00014465,3]
[330752166,1719755497846,-500.0,0.00014465,3]
[330752167,1719755497855,-500.0,0.00014465,3]
[330752168,1719755497865,-500.0,0.00014465,3]
[330752169,1719755497875,-532.86,0.00014465,3]
[330752170,1719755497885,-675.41,0.00014465,3]
[330752171,1719755497895,-581.61,0.00014465,3]
[330752172,1719755497905,-663.09,0.00014465,3]
[330752173,1719755497915,-500.0,0.00014465,3]
[330752174,1719755497924,-500.0,0.00014465,3]
[330752175,1719755497936,-577.38,0.00014465,3]
[330752176,1719755497946,-500.0,0.00014465,3]
[330752177,1719755497956,-500.0,0.00014465,3]
[330752178,1719755497966,-500.0,0.00014465,3]
[330752179,1719755497976,-500.0,0.00014465,3]
[330752180,1719755497987,-500.0,0.00014465,3]
[330752181,1719755497998,-540.81,0.00014465,3]
[330752182,1719755498008,-500.0,0.00014465,3]
[330752183,1719755498018,-500.0,0.00014465,3]
[330752184,1719755498028,-718.0,0.00014465,3]
[330752185,1719755498039,-574.88,0.00014465,3]
[330752186,1719755498049,-500.0,0.00014465,3]
[330752187,1719755498060,-652.08,0.00014465,3]
[330752188,1719755498070,-500.0,0.00014465,3]
[330752189,1719755498080,-500.0,0.00014465,3]
[330752190,1719755498090,-920.11,0.00014465,3]
[330752191,1719755498101,-695.25,0.00014465,3]
[330752192,1719755498111,-510.24,0.00014465,3]
[330752193,1719755498121,-500.0,0.00014465,3]
[330752194,1719755498131,-605.83,0.00014465,3]
[330752195,1719755498141,-677.83,0.00014465,3]
[330752196,1719755498151,-643.10911605,0.00014465,3]
[330752197,1719755498162,-500.0,0.00014465,3]
[330752198,1719755498171,-581.28,0.00014465,3]
[330752199,1719755498182,-500.0,0.00014465,3]
[330752200,1719755498192,-500.0,0.00014465,3]
[330752201,1719755498202,-812.74,0.00014465,3]
[330752202,1719755498211,-500.0,0.00014465,3]
[330752203,1719755498224,-701.39,0.00014465,3]
[330752204,1719755498234,-620.73,0.00014465,3]
[330752205,1719755498244,-500.0,0.00014465,3]
[330752206,1719755498256,-500.0,0.00014465,3]
[330752207,1719755498265,-500.0,0.00014465,3]
[330752208,1719755498277,-553.86,0.00014465,3]
[330752209,1719755498287,-500.0,0.00014465,3]
[330752210,1719755498297,-500.0,0.00014465,3]
[330752211,1719755498307,-621.88,0.00014465,3]
[330752212,1719755498316,-500.0,0.00014465,3]
[330752213,1719755498326,-500.0,0.00014465,3]
[330752214,1719755498336,-500.0,0.00014465,3]
[330752215,1719755498346,-612.92,0.00014465,3]
[330752216,1719755498356,-500.0,0.00014465,3]
[330752217,1719755498366,-1832.16,0.00014465,3]
[330752218,1719755498376,-681.93,0.00014465,3]
[330752219,1719755498386,-1755.82,0.00014465,3]
[330752220,1719755498395,-562.52,0.00014465,3]
[330752221,1719755498405,-500.0,0.00014465,3]
[330752222,1719755498415,-500.0,0.00014465,3]
[330752223,1719755498426,-500.0,0.00014465,3]
[330752224,1719755498436,-500.0,0.00014465,3]
[330752225,1719755498447,-1263.58,0.00014465,3]
[330752226,1719755498456,-757.31,0.00014465,3]
[330752227,1719755498466,-500.0,0.00014465,3]
[330752228,1719755498476,-656.95,0.00014465,3]
[330752229,1719755498485,-631.07,0.00014465,3]
[330752230,1719755498495,-738.1,0.00014465,3]
[330752231,1719755498505,-1210.93,0.00014465,3]
[330752232,1719755498515,-561.72,0.00014465,3]
[330752233,1719755498525,-279.63,0.00014465,3]
[330752234,1719755498535,-576.94,0.00014465,3]
[330752235,1719755498546,-500.0,0.00014465,3]
[330752236,1719755498556,-500.0,0.00014465,3]
[330752237,1719755498568,-748.82,0.00014465,3]
[330752238,1719755498580,-513.03,0.00014465,3]
[330752239,1719755498596,-500.0,0.00014465,3]
[330752240,1719755498606,-579.86,0.00014465,3]
[330752241,1719755498616,-500.0,0.00014465,3]
[330752242,1719755498627,-851.99,0.00014465,3]
[330752243,1719755498637,-590.03,0.00014465,3]
[330752244,1719755498647,-704.42,0.00014465,3]
[330752245,1719755498656,-1993.43,0.00014465,3]
[330752246,1719755498667,-525.63,0.00014465,3]
[330752247,1719755498676,-500.0,0.00014465,3]
[330752248,1719755498687,-500.0,0.00014465,3]
[330752249,1719755498696,-833.5,0.00014465,3]
[330752250,1719755498706,-500.0,0.00014465,3]
[330752251,1719755498715,-577.94,0.00014465,3]
[330752252,1719755498726,-500.0,0.00014465,3]
[330752253,1719755498735,-500.0,0.00014465,3]
[330752254,1719755498745,-500.0,0.00014465,3]
[330752255,1719755498755,-500.0,0.00014465,3]
[330752256,1719755498765,-500.0,0.00014465,3]
[330752257,1719755498776,-500.0,0.00014465,3]
[330752258,1719755498785,-500.0,0.00014465,3]
[330752259,1719755498794,-500.0,0.00014465,3]
[330752260,1719755498804,-500.0,0.00014465,3]
[330752261,1719755498814,-664.06,0.00014465,3]
[330752262,1719755498824,-565.11,0.00014465,3]
[330752263,1719755498836,-500.0,0.00014465,3]
[330752264,1719755498846,-500.0,0.00014465,3]
[330752265,1719755498856,-500.0,0.00014465,3]
[330752266,1719755498865,-519.91,0.00014465,3]
[330752267,1719755498875,-500.0,0.00014465,3]
[330752268,1719755498885,-500.0,0.00014465,3]
[330752269,1719755498895,-680.22,0.00014465,3]
[330752270,1719755498905,-500.0,0.00014465,3]
[330752271,1719755498915,-763.34,0.00014465,3]
[330752272,1719755498924,-500.0,0.00014465,3]
[330752273,1719755498935,-500.0,0.00014465,3]
[330752274,1719755498944,-500.0,0.00014465,3]
[330752275,1719755498953,-502.66,0.00014465,3]
[330752276,1719755498964,-500.0,0.00014465,3]
[330752277,1719755498974,-500.0,0.00014465,3]
[330752278,1719755498983,-500.0,0.00014465,3]
[330752279,1719755498993,-657.33,0.00014465,3]
[330752280,1719755499004,-726.36,0.00014465,3]
[330752281,1719755499014,-500.0,0.00014465,3]
[330752282,1719755499025,-507.76593407,0.00014465,3]
[330752283,1719755499035,-500.0,0.00014465,3]
[330752284,1719755499044,-588.22,0.00014465,3]
[330752285,1719755499054,-1038.06,0.00014465,3]
[330752286,1719755499064,-581.82,0.00014465,3]
[330752287,1719755499074,-500.0,0.00014465,3]
[330752288,1719755499084,-500.0,0.00014465,3]
[330752289,1719755499093,-500.0,0.00014465,3]
[330752290,1719755499103,-500.0,0.00014465,3]
[330752291,1719755499113,-500.0,0.00014465,3]
[330752292,1719755499123,-500.0,0.00014465,3]
[330752293,1719755499133,-871.16,0.00014465,3]
[330752294,1719755499333,-500.0,0.00014465,3]
[330752295,1719755499344,-500.0,0.00014465,3]
[330752296,1719755499354,-500.0,0.00014465,3]
[330752297,1719755499363,-1237.1,0.00014465,3]
[330752298,1719755499372,-978.48,0.00014465,3]
[330752299,1719755499381,-500.0,0.00014465,3]
[330752300,1719755499391,-298.05,0.00014465,3]
[330752301,1719755499400,-647.7,0.00014465,3]
[330752302,1719755499409,-515.55,0.00014465,3]
[330752303,1719755499417,-503.58,0.00014465,3]
[330752304,1719755499427,-500.0,0.00014465,3]
[330752305,1719755499437,-500.0,0.00014465,3]
[330752306,1719755499446,-568.53,0.00014465,3]
[330752307,1719755499460,-727.04,0.00014465,3]
[330752308,1719755499469,-731.31,0.00014465,3]
[330752309,1719755499480,-845.38,0.00014465,3]
[330752310,1719755499490,-482.82,0.00014465,3]
[330752311,1719755499500,-653.03,0.00014465,3]
[330752312,1719755499510,-500.0,0.00014465,3]
[330752313,1719755499520,-500.0,0.00014465,3]
[330752314,1719755499530,-1124.32,0.00014465,3]
[330752315,1719755499540,-186.67,0.00014465,3]
[330752316,1719755499550,-518.38,0.00014465,3]
[330752317,1719755499560,-680.8,0.00014465,3]
[330752318,1719755499570,-1020.54,0.00014465,3]
[330752319,1719755499580,-500.0,0.00014465,3]
[330752320,1719755499594,-500.0,0.00014465,3]
[330752321,1719755499603,-786.17,0.00014465,3]
[330752322,1719755499613,-500.0,0.00014465,3]
[330752323,1719755499623,-500.0,0.00014465,3]
[330752324,1719755499633,-500.0,0.00014465,3]
[330752325,1719755499643,-582.78,0.00014465,3]
[330752326,1719755499652,-500.0,0.00014465,3]
[330752327,1719755499661,-544.15,0.00014465,3]
[330752328,1719755499672,-500.0,0.00014465,3]
[330752329,1719755499682,-4117.59,0.00014465,3]
[330752330,1719755499692,-500.0,0.00014465,3]
[330752331,1719755499702,-613.82,0.00014465,3]
[330752332,1719755499711,-561.98031398,0.00014465,3]
[330752333,1719755499720,-500.0,0.00014465,3]
[330752334,1719755499729,-766.18,0.00014465,3]
[330752335,1719755499738,-500.0,0.00014465,3]
[330752336,1719755499748,-842.1,0.00014465,3]
[330752337,1719755499758,-500.0,0.00014465,3]
[330752338,1719755499767,-500.0,0.00014465,3]
[330752339,1719755499776,-500.0,0.00014465,3]